bitfinex-derivatives/quotes_BTCF0:USTF0_20250405
["timestamp","ask_amount","ask_price","bid_price","bid_amount"]
[1743815621137,0.0590783,84150.0,84146.0,0.0832203]
[1743815621329,0.00110001,84147.0,84146.0,0.0838203]
[1743815622739,0.06040001,84147.0,84146.0,0.1426203]
[1743815623043,0.06040001,84147.0,84146.0,0.12774657]
[1743815625235,0.11890001,84147.0,84146.0,0.06894657]
[1743815627043,0.11890001,84147.0,84146.0,0.0006]
[1743815627242,0.56291931,84147.0,84146.0,0.0006]
[1743815627443,0.0832216,84145.0,84143.0,0.05108]
[1743815627645,0.1181,84144.0,84143.0,0.05172]
[1743815627838,0.11870001,84144.0,84143.0,0.05172]
[1743815630455,0.11870001,84144.0,84143.0,0.02918864]
[1743815630751,0.20192231,84144.0,84143.0,0.02918864]
[1743815631658,0.11870001,84144.0,84143.0,0.02918864]
[1743815633453,0.11870001,84144.0,84143.0,0.01431393]
[1743815633652,0.11870001,84144.0,84143.0,0.00064]
[1743815638460,0.11870001,84144.0,84140.0,0.19683205]
[1743815638645,0.11870001,84144.0,84140.0,0.19743205]
[1743815639051,0.11870001,84144.0,84140.0,0.25363205]
[1743815640662,0.11870001,84144.0,84140.0,0.1151]
[1743815640964,0.0832332,84133.0,84132.0,0.3608]
[1743815641155,0.0842332,84133.0,84132.0,0.36144]
[1743815641356,0.93759975,84133.0,84132.0,0.36144]
[1743815642963,0.93759975,84133.0,84132.0,0.00064]
[1743815643165,0.0832381,84128.0,84127.0,0.0088657]
[1743815643362,0.0832401,84126.0,84125.0,0.39005629]
[1743815643560,0.0832401,84126.0,84125.0,0.39069629]
[1743815643759,0.08420011,84126.0,84125.0,0.39069629]
[1743815643955,0.20310011,84126.0,84125.0,0.39069629]
[1743815645066,0.11986001,84126.0,84125.0,0.39069629]
[1743815645256,0.11986001,84126.0,84125.0,0.37581938]
[1743815645659,0.20310011,84126.0,84125.0,0.37581938]
[1743815646366,0.11986001,84126.0,84125.0,0.37581938]
[1743815646762,0.20310011,84126.0,84125.0,0.37581938]
[1743815647067,0.88266666,84126.0,84125.0,0.01501938]
[1743815647255,0.88266666,84126.0,84125.0,0.02342092]
[1743815647452,0.0832421,84124.0,84123.0,0.0001783]
[1743815647657,0.0416225,84122.0,84117.0,0.09281221]
[1743815647861,0.083248,84118.0,84117.0,0.08915372]
[1743815648256,0.206248,84118.0,84117.0,0.08915372]
[1743815648462,0.206248,84118.0,84117.0,0.09798818]
[1743815648658,0.88581455,84118.0,84117.0,0.03878818]
[1743815648956,0.0832552,84111.0,84109.0,0.0001783]
[1743815649157,0.123,84110.0,84109.0,0.00918504]
[1743815649468,0.1811,84110.0,84109.0,0.00918504]
[1743815650066,0.123,84110.0,84109.0,0.00918504]
[1743815650267,0.12404001,84110.0,84109.0,0.00986504]
[1743815650764,0.12404001,84110.0,84109.0,0.07126504]
[1743815651465,0.06144001,84110.0,84109.0,0.07126504]
[1743815653767,0.06144001,84110.0,84109.0,0.10001638]
[1743815654660,0.14469591,84110.0,84109.0,0.10001638]
[1743815654860,0.82426246,84110.0,84109.0,0.03861638]
[1743815655061,0.88616246,84110.0,84109.0,0.03861638]
[1743815655362,0.88616246,84110.0,84109.0,0.02373592]
[1743815655760,0.88616246,84110.0,84109.0,0.01298927]
[1743815655961,0.0832589,84107.0,84106.0,0.0611]
[1743815656157,0.08445891,84107.0,84106.0,0.0611]
[1743815656468,0.82662546,84107.0,84106.0,0.09989844]
[1743815656658,1.24932546,84107.0,84106.0,0.03879844]
[1743815656864,0.0832658,84100.0,84099.0,0.0611]
[1743815657169,0.0416317,84103.0,84086.0,0.3608]
[1743815657470,0.0832787,84087.0,84086.0,0.0605]
[1743815657863,0.1425787,84087.0,84086.0,0.0605]
[1743815658267,0.1437387,84087.0,84086.0,0.0605]
[1743815658472,0.1437387,84087.0,84086.0,0.1239]
[1743815658664,0.06046,84087.0,84086.0,0.1239]
[1743815658864,0.06046,84087.0,84086.0,0.1844]
[1743815661969,0.06046,84087.0,84086.0,0.19331853]
[1743815662672,0.06046,84087.0,84086.0,0.22287411]
[1743815668478,0.06046,84087.0,84086.0,0.16237411]
[1743815669272,0.1437387,84087.0,84086.0,0.10087411]
[1743815669480,0.2011387,84087.0,84086.0,0.10087411]
[1743815670176,0.88070525,84087.0,84086.0,0.03847411]
[1743815670376,0.0832797,84086.0,84085.0,0.3608]
[1743815670774,0.88304625,84086.0,84085.0,0.3608]
[1743815673172,0.0628,84086.0,84085.0,0.39968344]
[1743815673680,0.1460797,84086.0,84085.0,0.39968344]
[1743815673872,0.1460797,84086.0,84082.0,0.0588]
[1743815673873,0.0832866,84079.0,84078.0,0.0001783]
[1743815674069,0.08452661,84079.0,84078.0,0.0001783]
[1743815674273,0.14282661,84079.0,84078.0,0.0001783]
[1743815674573,0.14282661,84079.0,84078.0,0.0090293]
[1743815675479,0.20292661,84079.0,84078.0,0.0090293]
[1743815676073,0.20292661,84079.0,84078.0,0.03843641]
[1743815680484,0.88249316,84079.0,84078.0,0.03843641]
[1743815680684,1.24329316,84079.0,84078.0,0.03843641]
[1743815684383,1.16000656,84079.0,84074.0,0.0593]
[1743815684586,0.0832906,84075.0,84074.0,0.0593]
[1743815684787,0.0844506,84075.0,84074.0,0.0593]
[1743815685383,0.2059506,84075.0,84074.0,0.0593]
[1743815686185,0.2059506,84075.0,84074.0,0.06822888]
[1743815688295,0.2059506,84075.0,84074.0,0.10535331]
[1743815689691,0.0832955,84070.0,84069.0,0.00136]
[1743815689896,0.0832955,84070.0,84069.0,0.00144]
[1743815690198,0.0832955,84070.0,84069.0,0.00136]
[1743815690389,0.2064955,84070.0,84069.0,0.00136]
[1743815691497,0.0416483,84069.0,84065.0,8e-05]
[1743815691698,0.0416492,84067.0,84059.0,0.0616]
[1743815691992,0.0416521,84062.0,84059.0,0.06168]
[1743815692292,0.0833054,84060.0,84059.0,0.06168]
[1743815692491,0.0844654,84060.0,84059.0,0.06168]
[1743815692690,0.2032654,84060.0,84059.0,0.06168]
[1743815693088,0.2032654,84060.0,84059.0,0.00897176]
[1743815694791,0.2032654,84060.0,84059.0,0.06667176]
[1743815694992,0.2032654,84060.0,84059.0,0.16350416]
[1743815695191,0.11996,84060.0,84059.0,0.16350416]
[1743815696292,0.2032654,84060.0,84059.0,0.16350416]
[1743815701397,0.11996,84060.0,84059.0,0.16350416]
[1743815702494,0.00116,84060.0,84059.0,0.16350416]
[1743815702703,8e-05,84064.0,84063.0,0.0833025]
[1743815703091,8e-05,84064.0,84060.0,0.1249572]
[1743815703296,0.00128001,84064.0,84061.0,0.0833042]
[1743815703503,0.00128001,84064.0,84062.0,0.0833031]
[1743815704095,0.00128001,84064.0,84059.0,0.09668416]
[1743815704294,0.00128001,84064.0,84062.0,0.0833029]
[1743815704495,0.00128001,84064.0,84063.0,0.0833025]
[1743815709400,0.00128001,84064.0,84063.0,0.06841536]
[1743815709904,0.00120001,84064.0,84063.0,0.06841536]
[1743815710108,8e-05,84075.0,84073.0,0.0832919]
[1743815710407,0.0612,84077.0,84074.0,0.10898]
[1743815710702,0.06236,84077.0,84074.0,0.10898]
[1743815711002,0.36088,84098.0,84076.0,0.4440896]
[1743815711209,8e-05,84090.0,84089.0,0.0416383]
[1743815711398,0.1224,84097.0,84089.0,0.0927183]
[1743815711808,0.12248,84097.0,84091.0,0.0832746]
[1743815712511,0.12248,84097.0,84092.0,0.0832735]
[1743815715199,0.12324,84097.0,84092.0,0.0838735]
[1743815719413,0.12324,84097.0,84092.0,0.0006]
[1743815719711,0.08327,84096.0,84089.0,0.1343558]
[1743815719912,0.08419,84096.0,84089.0,0.1350358]
[1743815720107,0.1138,84095.0,84089.0,0.1350358]
[1743815720308,0.11464,84095.0,84089.0,0.1350358]
[1743815720611,0.11464,84095.0,84090.0,0.0615]
[1743815720811,0.11464,84095.0,84090.0,0.04721703]
[1743815721512,0.11464,84095.0,84090.0,0.13049273]
[1743815721713,0.11464,84095.0,84085.0,0.00017841]
[1743815721714,0.0416387,84089.0,84085.0,0.00017841]
[1743815721905,0.0832797,84086.0,84085.0,0.00077841]
[1743815722104,0.0842797,84086.0,84085.0,0.00017841]
[1743815722307,0.2008797,84086.0,84085.0,0.00017841]
[1743815723414,0.1176,84086.0,84085.0,0.00017841]
[1743815724112,0.1176,84086.0,84085.0,0.00077841]
[1743815724512,0.0601,84086.0,84085.0,0.00077841]
[1743815724712,0.0601,84086.0,84085.0,0.20555911]
[1743815725909,0.001,84086.0,84085.0,0.20555911]
[1743815726113,0.35140846,84091.0,84090.0,0.0832757]
[1743815726615,0.35140846,84091.0,84090.0,0.1454757]
[1743815726814,0.35140846,84091.0,84090.0,0.0622]
[1743815727114,0.35140846,84091.0,84090.0,0.1454757]
[1743815727525,0.35140846,84091.0,84090.0,0.2057757]
[1743815728519,0.0587,84096.0,84091.0,0.0832747]
[1743815728720,0.0567,84095.0,84091.0,0.0832747]
[1743815728919,0.0567,84095.0,84092.0,0.1185]
[1743815729218,0.0594,84094.0,84092.0,0.1185]
[1743815730020,0.0567,84093.0,84092.0,0.1185]
[1743815730318,0.0575,84093.0,84092.0,0.11918]
[1743815732119,0.0575,84093.0,84092.0,0.2024537]
[1743815733517,0.0575,84093.0,84092.0,0.05888]
[1743815734106,0.0008,84093.0,84092.0,0.1421537]
[1743815734313,0.0008,84093.0,84092.0,0.2016537]
[1743815735026,0.0571,84093.0,84092.0,0.2016537]
[1743815739320,0.0571,84093.0,84092.0,0.05888]
[1743815740419,0.4641929,84100.0,84092.0,0.05888]
[1743815740420,0.3488,84120.0,84092.0,0.82788]
[1743815740619,0.00068,84120.0,84118.0,0.083248]
[1743815740813,0.4024153,84136.0,84123.0,0.0832429]
[1743815741017,0.083234,84133.0,84124.0,0.10362233]
[1743815741218,8e-05,84125.0,84124.0,0.10362233]
[1743815741418,0.0609,84132.0,84124.0,0.10454233]
[1743815741612,8e-05,84130.0,84124.0,0.10546233]
[1743815741834,0.001,84130.0,84124.0,0.07597879]
[1743815742218,0.0609,84129.0,84128.0,0.0832381]
[1743815742421,0.0609,84129.0,84128.0,0.1446581]
[1743815742817,0.0001783,84133.0,84132.0,0.0832342]
[1743815743023,0.3608,84148.0,84132.0,0.00092]
[1743815743215,0.0832116,84155.0,84145.0,0.0832206]
[1743815743417,0.0832125,84154.0,84143.0,0.4024115]
[1743815743615,1.04036655,84155.0,84145.0,0.00124]
[1743815743823,8e-05,84145.0,84144.0,0.0832215]
[1743815744024,8e-05,84145.0,84144.0,0.1973215]
[1743815744224,0.0575783,84153.0,84144.0,0.1973215]
[1743815744426,0.73714485,84153.0,84145.0,0.0832209]
[1743815744620,0.0832146,84152.0,84145.0,0.0832209]
[1743815744815,0.73714485,84153.0,84145.0,0.0832209]
[1743815745021,0.0574,84151.0,84147.0,0.0832191]
[1743815745222,0.0574,84151.0,84143.0,0.41184]
[1743815745223,0.0574,84151.0,84148.0,0.1141]
[1743815746028,0.0591,84150.0,84148.0,0.1141]
[1743815746421,0.0591,84150.0,84148.0,0.1973181]
[1743815746730,0.0591,84150.0,84148.0,0.197318]
[1743815746925,0.0591,84150.0,84148.0,0.1141]
[1743815749033,0.06026,84150.0,84148.0,0.11526]
[1743815750733,0.0591,84150.0,84148.0,0.1984774]
[1743815750935,0.0591,84150.0,84148.0,0.11526]
[1743815754630,0.0621,84149.0,84148.0,0.11526]
[1743815755622,0.0621,84149.0,84148.0,0.1663]
[1743815758637,0.0591,84150.0,84149.0,0.0832173]
[1743815758838,0.0591,84150.0,84149.0,0.2041773]
[1743815760336,0.0591,84150.0,84149.0,0.12096]
[1743815761337,0.0591,84150.0,84149.0,0.2041773]
[1743815762548,0.0591,84150.0,84149.0,0.12096]
[1743815764347,0.0591,84150.0,84149.0,0.2041773]
[1743815765055,0.0591,84150.0,84149.0,0.12096]
[1743815765952,0.0591,84150.0,84149.0,0.2041773]
[1743815766449,0.0591,84150.0,84149.0,0.12096]
[1743815768644,0.0591,84150.0,84149.0,0.2041773]
[1743815769646,0.0001783,84153.0,84149.0,0.1625686]
[1743815770950,0.0001783,84153.0,84149.0,0.12096]
[1743815771840,0.0001783,84153.0,84149.0,0.00116]
[1743815772150,0.0832156,84151.0,84149.0,0.00116]
[1743815772344,0.2014163,84150.0,84149.0,0.00116]
[1743815772546,0.5622163,84150.0,84149.0,0.00116]
[1743815772844,0.5622163,84150.0,84136.0,0.0001783]
[1743815772845,0.0832223,84144.0,84143.0,0.05104]
[1743815773153,0.0832223,84144.0,84143.0,0.0012]
[1743815773355,0.0832234,84143.0,84141.0,0.051]
[1743815773554,0.3608,84142.0,84141.0,0.03299583]
[1743815773754,0.538,84142.0,84141.0,0.03299583]
[1743815773946,0.6212243,84142.0,84141.0,0.01932244]
[1743815774258,0.6212243,84142.0,84141.0,0.01812244]
[1743815774945,0.6223843,84142.0,84141.0,0.01928244]
[1743815775548,0.2615843,84142.0,84141.0,0.01928244]
[1743815776355,0.2615843,84142.0,84141.0,0.01812244]
[1743815776552,0.2615843,84142.0,84136.0,0.0001783]
[1743815776553,0.0832292,84137.0,84136.0,0.0001783]
[1743815776857,0.0832292,84137.0,84136.0,0.0512183]
[1743815777052,0.2025292,84137.0,84136.0,0.0512183]
[1743815777557,0.2025292,84137.0,84136.0,0.0523783]
[1743815777752,0.2025292,84137.0,84136.0,0.0512183]
[1743815778957,0.1193,84137.0,84136.0,0.0512183]
[1743815782459,0.12046,84137.0,84136.0,0.0523783]
[1743815782956,0.12046,84137.0,84136.0,0.0013383]
[1743815784355,0.2036892,84137.0,84136.0,0.0013383]
[1743815784560,0.2036892,84137.0,84136.0,0.0001783]
[1743815784756,0.2036892,84137.0,84110.0,0.10860039]
[1743815784757,0.0832411,84125.0,84110.0,0.10860039]
[1743815785058,1.04096656,84125.0,84118.0,0.05104]
[1743815785259,1.04096656,84125.0,84119.0,0.1191]
[1743815785260,0.1235,84124.0,84119.0,0.1191]
[1743815785460,0.1235,84124.0,84119.0,0.20971047]
[1743815785651,0.1235,84124.0,84119.0,0.21964326]
[1743815785853,0.1235,84124.0,84119.0,0.21840326]
[1743815786253,0.0832433,84123.0,84119.0,0.16130326]
[1743815786454,0.1235,84124.0,84119.0,0.16130326]
[1743815786649,0.1185,84122.0,84119.0,0.16130326]
[1743815788050,0.1185,84122.0,84119.0,0.04220326]
[1743815788358,0.083246,84120.0,84119.0,0.04104326]
[1743815788560,0.083246,84120.0,84118.0,0.05104]
[1743815788755,0.118,84119.0,84118.0,0.05104]
[1743815788957,0.118,84119.0,84118.0,0.0522]
[1743815789156,0.201247,84119.0,84118.0,0.0522]
[1743815789561,0.201247,84119.0,84118.0,0.09213098]
[1743815791156,0.118,84119.0,84118.0,0.09213098]
[1743815792763,0.4788,84119.0,84118.0,0.09213098]
[1743815793559,1.24161355,84119.0,84118.0,0.04109098]
[1743815793760,1.24161355,84119.0,84118.0,0.03993098]
[1743815794071,0.0832516,84115.0,84113.0,0.0001783]
[1743815794368,0.1696,84114.0,84113.0,0.0001783]
[1743815794565,0.252852,84114.0,84113.0,0.0001783]
[1743815794765,0.1696,84114.0,84113.0,0.0013383]
[1743815795659,0.252852,84114.0,84113.0,0.0013383]
[1743815795858,0.252852,84114.0,84113.0,0.0001783]
[1743815796366,0.252852,84114.0,84113.0,0.00900863]
[1743815797772,0.252852,84114.0,84113.0,0.04098276]
[1743815799369,0.0416285,84109.0,84104.0,0.05104]
[1743815799568,0.4440609,84105.0,84104.0,0.00116]
[1743815799763,0.0832698,84096.0,84095.0,0.3608]
[1743815799963,0.0832698,84096.0,84095.0,0.36196]
[1743815800160,0.19966981,84096.0,84095.0,0.36196]
[1743815801175,0.19966981,84096.0,84095.0,0.00116]
[1743815801569,0.19966981,84096.0,84095.0,0.03262998]
[1743815801766,0.00120001,84096.0,84095.0,0.03262998]
[1743815802070,0.00120001,84096.0,84095.0,0.04140041]
[1743815802265,0.00120001,84096.0,84095.0,0.00116]
[1743815802874,0.00120001,84096.0,84095.0,0.0522]
[1743815803861,0.08446981,84096.0,84095.0,0.0522]
[1743815804171,0.08446981,84096.0,84095.0,0.08331137]
[1743815804573,0.14226981,84096.0,84095.0,0.08331137]
[1743815806473,0.14226981,84096.0,84095.0,0.09214698]
[1743815810274,0.00120001,84096.0,84095.0,0.09214698]
[1743815810571,0.0591,84103.0,84101.0,0.0832648]
[1743815810773,0.0832552,84111.0,84103.0,0.0832619]
[1743815810976,0.1423562,84110.0,84103.0,0.0016]
[1743815811177,8e-05,84107.0,84103.0,0.0016]
[1743815811567,8e-05,84107.0,84104.0,0.1163]
[1743815811771,8e-05,84107.0,84104.0,0.11782]
[1743815811970,0.0832572,84109.0,84104.0,0.11782]
[1743815812173,0.0591,84108.0,84104.0,0.11782]
[1743815812675,0.0832599,84107.0,84104.0,0.11782]
[1743815813068,0.1387599,84106.0,84104.0,0.11782]
[1743815813269,0.0555,84106.0,84104.0,0.11782]
[1743815813469,0.0832609,84105.0,84104.0,0.11782]
[1743815813670,0.1371609,84105.0,84104.0,0.11782]
[1743815813870,0.1926609,84105.0,84104.0,0.11782]
[1743815815879,0.0555,84105.0,84104.0,0.11782]
[1743815816079,0.1387609,84105.0,84104.0,0.11782]
[1743815819183,0.1936609,84105.0,84104.0,0.11782]
[1743815819373,0.0832605,84106.0,84104.0,0.11782]
[1743815819573,0.0972072,84112.0,84104.0,0.11782]
[1743815819779,0.0832573,84109.0,84104.0,0.11782]
[1743815820284,0.0832589,84108.0,84104.0,0.11782]
[1743815820484,0.0832591,84107.0,84104.0,0.11782]
[1743815820674,0.0832582,84108.0,84104.0,0.11782]
[1743815821885,0.05558,84112.0,84104.0,0.11782]
[1743815822087,0.05558,84112.0,84105.0,0.0832607]
[1743815822272,0.05558,84112.0,84105.0,0.0847807]
[1743815822476,0.0554,84111.0,84105.0,0.0847807]
[1743815823276,0.0554,84111.0,84105.0,0.00152]
[1743815823483,0.0416284,84109.0,84105.0,0.00152]
[1743815823675,0.0832589,84107.0,84106.0,0.0555]
[1743815823876,0.0832589,84107.0,84106.0,0.0571]
[1743815824076,0.1948589,84107.0,84106.0,0.0555]
[1743815826685,0.1116,84107.0,84101.0,0.0545]
[1743815826882,0.0832668,84099.0,84098.0,0.05104]
[1743815827077,0.0832658,84101.0,84098.0,0.05256]
[1743815827279,0.1109,84102.0,84099.0,0.04261942]
[1743815827474,0.1109,84100.0,84099.0,0.04417942]
[1743815827784,0.1109,84100.0,84099.0,0.10347942]
[1743815831190,0.0001783,84114.0,84105.0,0.0832606]
[1743815831383,0.30253758,84108.0,84107.0,0.0832589]
[1743815831583,0.30245758,84108.0,84107.0,0.0847789]
[1743815831784,0.30245758,84108.0,84107.0,0.1427789]
[1743815831985,0.30245758,84108.0,84107.0,0.05952]
[1743815833191,0.0569,84110.0,84107.0,0.05952]
[1743815834381,8e-05,84111.0,84108.0,0.0832579]
[1743815834586,8e-05,84111.0,84108.0,0.00152]
[1743815834786,8e-05,84111.0,84109.0,0.0552]
[1743815834987,8e-05,84111.0,84110.0,0.0574]
[1743815835187,8e-05,84111.0,84110.0,0.059]
[1743815837478,8e-05,84111.0,84110.0,0.0016]
[1743815840490,0.05568,84111.0,84110.0,0.0016]
[1743815845095,8e-05,84117.0,84110.0,0.0016]
[1743815845292,8e-05,84135.0,84128.0,0.0832376]
[1743815845491,0.16544444,84145.0,84131.0,0.3608]
[1743815845681,0.16544444,84145.0,84138.0,0.3608]
[1743815845682,0.0416111,84144.0,84138.0,0.3608]
[1743815845883,0.0416116,84143.0,84138.0,0.36232]
[1743815846092,0.0832249,84142.0,84139.0,0.0577]
[1743815846397,0.0832256,84141.0,84139.0,0.05922]
[1743815846595,0.0832256,84141.0,84139.0,0.04434524]
[1743815846891,0.058,84140.0,84139.0,0.04434524]
[1743815847394,8e-05,84143.0,84139.0,0.04434524]
[1743815847603,8e-05,84143.0,84142.0,0.0832243]
[1743815847798,0.0001783,84149.0,84142.0,0.00152]
[1743815848096,0.0001783,84149.0,84148.0,0.3608]
[1743815848286,0.0581783,84149.0,84148.0,0.36232]
[1743815850088,0.0001783,84149.0,84148.0,0.36232]
[1743815850593,0.0564,84150.0,84148.0,0.36232]
[1743815850998,0.0564,84150.0,84149.0,0.0556]
[1743815851295,0.0564,84150.0,84149.0,0.1442277]
[1743815851501,0.0416012,84165.0,84149.0,0.1442277]
[1743815851502,8e-05,84153.0,84149.0,0.1442277]
[1743815851701,0.0001783,84158.0,84149.0,0.1442277]
[1743815851902,0.67974485,84158.0,84149.0,0.1858359]
[1743815852101,0.0564,84157.0,84149.0,0.185836]
[1743815852302,0.0564,84157.0,84149.0,0.1442277]
[1743815852603,0.0564,84157.0,84149.0,0.1858361]
[1743815852604,0.79576655,84157.0,84149.0,0.1858361]
[1743815852899,0.79576655,84157.0,84149.0,0.1442277]
[1743815854288,0.79576655,84157.0,84149.0,0.2274448]
[1743815854690,0.79576655,84157.0,84149.0,0.1442277]
[1743815855804,0.67956655,84157.0,84149.0,0.1442277]
[1743815856196,0.73756655,84157.0,84149.0,0.1442277]
[1743815857104,0.79636655,84157.0,84149.0,0.1442277]
[1743815857303,0.87957605,84157.0,84149.0,0.1442277]
[1743815857505,0.79636655,84157.0,84149.0,0.1442277]
[1743815859507,0.87957605,84157.0,84149.0,0.1442277]
[1743815860092,0.0832112,84156.0,84149.0,0.1442277]
[1743815860298,0.083211,84156.0,84149.0,0.1442277]
[1743815860606,0.1161,84155.0,84149.0,0.1442277]
[1743815861001,0.0832163,84150.0,84149.0,0.0886277]
[1743815861202,0.0832163,84150.0,84149.0,0.0870277]
[1743815861398,0.1993163,84150.0,84149.0,0.0870277]
[1743815861598,0.1993163,84150.0,84149.0,0.0885477]
[1743815862309,0.1993163,84150.0,84149.0,0.1459477]
[1743815868314,0.1993163,84150.0,84149.0,0.13107553]
[1743815876020,0.1993163,84150.0,84149.0,0.07367553]
[1743815876223,0.1993163,84150.0,84149.0,0.07215553]
[1743815876409,0.0832223,84144.0,84143.0,0.0001783]
[1743815876616,0.4440223,84144.0,84143.0,0.0001783]
[1743815876821,1.29648885,84144.0,84143.0,0.02517491]
[1743815879622,0.0832253,84141.0,84140.0,0.0549]
[1743815880325,0.0832262,84140.0,84139.0,0.06690782]
[1743815880515,0.19472621,84140.0,84139.0,0.03397003]
[1743815880714,0.19472621,84140.0,84134.0,0.051]
[1743815880715,0.0832302,84136.0,84135.0,0.059]
[1743815880915,0.08431021,84136.0,84135.0,0.11598]
[1743815881111,0.19521021,84136.0,84135.0,0.11598]
[1743815881320,0.13971021,84136.0,84135.0,0.11598]
[1743815882117,0.00108001,84136.0,84135.0,0.11598]
[1743815882314,0.08431021,84136.0,84135.0,0.11598]
[1743815883419,0.08431021,84136.0,84135.0,0.14067441]
[1743815884419,0.00108001,84136.0,84135.0,0.14067441]
[1743815884726,0.00108001,84136.0,84135.0,0.14954607]
[1743815884926,0.05958001,84136.0,84135.0,0.14954607]
[1743815887530,0.00108001,84136.0,84135.0,0.14954607]
[1743815889224,0.00108001,84136.0,84135.0,0.51034607]
[1743815889423,0.0832296,84137.0,84135.0,0.51034607]
[1743815889621,0.0583,84136.0,84135.0,0.51034607]
[1743815890629,0.0583,84136.0,84132.0,0.051]
[1743815890630,0.0832342,84132.0,84131.0,0.0001783]
[1743815890825,0.1590159,84135.0,84112.0,0.3608]
[1743815891022,0.0601,84131.0,84121.0,0.1114]
[1743815891221,0.0832431,84123.0,84122.0,0.056]
[1743815891425,0.099918,84130.0,84122.0,0.056]
[1743815891426,0.0999183,84130.0,84122.0,0.056]
[1743815891626,0.041619,84128.0,84122.0,0.1117]
[1743815891825,0.0832421,84124.0,84122.0,0.1117]
[1743815892032,0.0832421,84124.0,84122.0,0.13650067]
[1743815892223,0.0832431,84123.0,84122.0,0.13650067]
[1743815893828,0.0832429,84124.0,84122.0,0.13650067]
[1743815894235,0.1394431,84123.0,84122.0,0.13650067]
[1743815896040,0.05704,84123.0,84122.0,0.13734067]
[1743815896336,0.0562,84123.0,84122.0,0.13734067]
[1743815897236,0.1394431,84123.0,84122.0,0.13734067]
[1743815897433,0.1402831,84123.0,84122.0,0.13734067]
[1743815898330,0.1976831,84123.0,84122.0,0.13734067]
[1743815899035,0.5584831,84123.0,84122.0,0.08164067]
[1743815899229,0.5584831,84123.0,84122.0,0.08080067]
[1743815899535,0.5584831,84123.0,84122.0,0.14166067]
[1743815900035,0.11444,84123.0,84122.0,0.14166067]
[1743815900238,0.00084,84123.0,84122.0,0.14166067]
[1743815900427,8e-05,84125.0,84124.0,0.0832412]
[1743815900629,0.3609783,84131.0,84124.0,0.05658]
[1743815900833,0.4442135,84131.0,84124.0,0.05658]
[1743815901033,8e-05,84129.0,84125.0,0.0551]
[1743815901242,0.0832365,84130.0,84125.0,0.04122386]
[1743815901739,0.0832365,84130.0,84126.0,0.0579]
[1743815901929,0.0832365,84130.0,84126.0,0.0589]
[1743815902638,0.0832391,84127.0,84126.0,0.0589]
[1743815902839,0.0832391,84127.0,84126.0,0.0579]
[1743815903039,0.87540565,84127.0,84126.0,0.0579]
[1743815903535,0.93600565,84127.0,84126.0,0.0579]
[1743815905945,0.93660566,84127.0,84126.0,0.0579]
[1743815911643,1.29740566,84127.0,84126.0,0.0579]
[1743815912546,1.29740566,84127.0,84126.0,0.04302256]
[1743815915052,0.93660566,84127.0,84126.0,0.04302256]
[1743815915241,1.29740566,84127.0,84126.0,0.04302256]
[1743815919054,0.93660566,84127.0,84126.0,0.04302256]
[1743815919255,1.29740566,84127.0,84126.0,0.04302256]
[1743815920053,0.0832431,84123.0,84122.0,0.02480067]
[1743815920261,0.083249,84117.0,84116.0,0.1081]
[1743815920462,0.084249,84117.0,84116.0,0.1091]
[1743815920762,0.82341555,84117.0,84116.0,0.00912295]
[1743815921056,0.94411555,84117.0,84116.0,0.00076]
[1743815921263,0.94411555,84117.0,84116.0,0.0254263]
[1743815922662,0.0832549,84111.0,84110.0,0.00168]
[1743815922869,0.041626,84114.0,84110.0,8e-05]
[1743815923058,0.0832549,84111.0,84110.0,8e-05]
[1743815923255,0.0423474,84111.0,84107.0,0.0579]
[1743815923560,0.00072,84111.0,84107.0,0.0585]
[1743815923768,0.0832562,84110.0,84107.0,0.0585]
[1743815923959,0.0832569,84109.0,84108.0,0.0621]
[1743815924159,0.0840169,84109.0,84108.0,0.07142929]
[1743815925860,0.00076,84109.0,84108.0,0.07142929]
[1743815926367,8e-05,84111.0,84108.0,0.12912929]
[1743815926563,0.00076,84111.0,84108.0,0.12912929]
[1743815926754,8e-05,84111.0,84108.0,0.12912929]
[1743815926959,0.041625,84116.0,84110.0,0.3608]
[1743815927159,8e-05,84112.0,84111.0,0.1176]
[1743815927466,8e-05,84112.0,84111.0,0.1182]
[1743815927764,0.0840139,84112.0,84111.0,0.1182]
[1743815928268,0.1435139,84112.0,84111.0,0.1182]
[1743815929873,0.2017139,84112.0,84111.0,0.0583]
[1743815930065,0.88128045,84112.0,84111.0,0.0583]
[1743815933179,0.88128045,84112.0,84111.0,0.04342104]
[1743815935777,0.1435139,84112.0,84111.0,0.04342104]
[1743815935980,0.0839339,84112.0,84111.0,0.04342104]
[1743815936173,8e-05,84114.0,84111.0,0.04342104]
[1743815936370,0.00068,84114.0,84112.0,0.0619]
[1743815936570,0.00068,84114.0,84112.0,0.06266]
[1743815936776,0.00068,84114.0,84113.0,0.0622]
[1743815936979,0.00068,84114.0,84113.0,0.06292]
[1743815938486,8e-05,84117.0,84113.0,0.06292]
[1743815938487,0.3608,84138.0,84113.0,0.1045464]
[1743815938785,8e-05,84128.0,84125.0,0.3608]
[1743815939085,0.08419821,84128.0,84126.0,0.1693]
[1743815939277,0.0832382,84128.0,84126.0,0.17018]
[1743815939980,0.0832382,84128.0,84126.0,0.10958]
[1743815940381,0.0832391,84127.0,84126.0,0.10958]
[1743815940579,0.08383911,84127.0,84126.0,0.10958]
[1743815940884,0.20513911,84127.0,84126.0,0.1087]
[1743815941584,0.00060001,84127.0,84126.0,0.1087]
[1743815941779,8e-05,84130.0,84126.0,0.10966]
[1743815941980,0.0001783,84131.0,84127.0,0.0832382]
[1743815942288,0.0001783,84131.0,84128.0,0.0578]
[1743815942489,0.0001783,84131.0,84128.0,0.05872]
[1743815943682,0.0001783,84131.0,84128.0,0.1419578]
[1743815944578,0.0001783,84131.0,84128.0,0.1419576]
[1743815944778,0.0001783,84131.0,84130.0,0.0832361]
[1743815944979,0.0001783,84131.0,84130.0,0.1432561]
[1743815945179,8e-05,84135.0,84134.0,0.0832318]
[1743815945387,8e-05,84135.0,84134.0,0.0841918]
[1743815945587,8e-05,84135.0,84134.0,0.1432918]
[1743815946288,0.0001783,84143.0,84137.0,0.0832284]
[1743815946489,8e-05,84141.0,84138.0,0.1423275]
[1743815946673,0.00096001,84141.0,84139.0,0.051]
[1743815946874,0.00096001,84141.0,84139.0,0.05188]
[1743815947079,0.0832262,84140.0,84139.0,0.05188]
[1743815947281,0.14172621,84140.0,84139.0,0.05188]
[1743815947592,0.19962621,84140.0,84139.0,0.05188]